[Event "*** SCC Grand Prix: Titled Tuesday Blitz"]
[Site "Chess.com"]
[Date "2020.07.14"]
[Round "10"]
[White "Mikhal867"]
[Black "EfM13"]
[Result "1-0"]
[WhiteElo "2393"]
[BlackElo "2252"]
[TimeControl "180+1"]
[EndTime "11:57:04 PDT"]
[Termination "Mikhal867 won on time"]

1. c4 {[%clk 0:02:37.7]} 1... d6 {[%clk 0:02:57]} 2. d4 {[%clk 0:02:36.6]} 2...
e5 {[%clk 0:02:55.8]} 3. Nf3 {[%clk 0:02:34.4]} 3... e4 {[%clk 0:02:55.2]} 4.
Ng5 {[%clk 0:02:30.7]} 4... f5 {[%clk 0:02:54.3]} 5. h4 {[%clk 0:02:27]} 5...
Be7 {[%clk 0:02:52.9]} 6. Nc3 {[%clk 0:02:22.2]} 6... Nf6 {[%clk 0:02:52.4]} 7.
h5 {[%clk 0:02:17.6]} 7... O-O {[%clk 0:02:44.6]} 8. h6 {[%clk 0:02:15.4]} 8...
g6 {[%clk 0:02:41.3]} 9. g3 {[%clk 0:02:06.7]} 9... c6 {[%clk 0:02:39]} 10. d5
{[%clk 0:02:05.4]} 10... Ng4 {[%clk 0:02:25.8]} 11. Nh3 {[%clk 0:01:58.8]} 11...
Nd7 {[%clk 0:01:55.1]} 12. b3 {[%clk 0:01:56.3]} 12... Qa5 {[%clk 0:01:49.7]}
13. Bb2 {[%clk 0:01:49.3]} 13... e3 {[%clk 0:01:37]} 14. f3 {[%clk 0:01:47]}
14... Bf6 {[%clk 0:01:31]} 15. Rc1 {[%clk 0:01:42.3]} 15... Nf2 {[%clk
0:01:18.4]} 16. Nxf2 {[%clk 0:01:41]} 16... exf2+ {[%clk 0:01:18.3]} 17. Kxf2
{[%clk 0:01:41]} 17... Qc5+ {[%clk 0:01:03.2]} 18. Kg2 {[%clk 0:01:37.9]} 18...
Qe3 {[%clk 0:00:39.5]} 19. dxc6 {[%clk 0:01:28]} 19... bxc6 {[%clk 0:00:36.8]}
20. Qxd6 {[%clk 0:01:27.3]} 20... Bd4 {[%clk 0:00:05.1]} 21. Nd1 {[%clk
0:01:15.6]} 1-0

[Event "*** SCC Grand Prix: Titled Tuesday Blitz"]
[Site "Chess.com"]
[Date "2020.07.14"]
[Round "10"]
[White "chargemax23"]
[Black "Haapana"]
[Result "1-0"]
[WhiteElo "2642"]
[BlackElo "2345"]
[TimeControl "180+1"]
[EndTime "11:57:05 PDT"]
[Termination "chargemax23 won on time"]

1. e4 {[%clk 0:03:00.9]} 1... e6 {[%clk 0:02:59.1]} 2. d4 {[%clk 0:03:00.2]}
2... d5 {[%clk 0:02:59.6]} 3. Nc3 {[%clk 0:03:01.1]} 3... Bb4 {[%clk 0:02:57.9]}
4. exd5 {[%clk 0:03:00.4]} 4... exd5 {[%clk 0:02:55.5]} 5. Bd3 {[%clk
0:03:00.9]} 5... c6 {[%clk 0:02:53]} 6. Ne2 {[%clk 0:03:00.5]} 6... Ne7 {[%clk
0:02:44]} 7. a3 {[%clk 0:02:55]} 7... Bd6 {[%clk 0:02:41.9]} 8. Bf4 {[%clk
0:02:54.4]} 8... Bf5 {[%clk 0:02:14.2]} 9. O-O {[%clk 0:02:50.6]} 9... O-O
{[%clk 0:02:10.3]} 10. b4 {[%clk 0:02:45]} 10... Qc7 {[%clk 0:02:02.2]} 11. Bxd6
{[%clk 0:02:41.9]} 11... Qxd6 {[%clk 0:02:03.1]} 12. Ng3 {[%clk 0:02:41.4]}
12... Bxd3 {[%clk 0:01:58.7]} 13. Qxd3 {[%clk 0:02:40.9]} 13... Nd7 {[%clk
0:01:58.8]} 14. Nd1 {[%clk 0:02:37.2]} 14... Nf6 {[%clk 0:01:51.1]} 15. Ne3
{[%clk 0:02:33.3]} 15... Rae8 {[%clk 0:01:38.3]} 16. a4 {[%clk 0:02:30.1]} 16...
g6 {[%clk 0:01:04.7]} 17. b5 {[%clk 0:02:21.7]} 17... c5 {[%clk 0:01:00.6]} 18.
dxc5 {[%clk 0:02:21.3]} 18... Qxc5 {[%clk 0:00:59.8]} 19. Rfd1 {[%clk
0:02:21.3]} 19... Rc8 {[%clk 0:00:53.1]} 20. Ne2 {[%clk 0:02:17]} 20... Rfd8
{[%clk 0:00:50.5]} 21. Nd4 {[%clk 0:02:11.9]} 21... Ne4 {[%clk 0:00:46.3]} 22.
a5 {[%clk 0:02:08.4]} 22... Kf8 {[%clk 0:00:31.3]} 23. a6 {[%clk 0:02:07.3]}
23... b6 {[%clk 0:00:30]} 24. Re1 {[%clk 0:02:06.7]} 24... Nd6 {[%clk
0:00:21.8]} 25. Ng4 {[%clk 0:02:03.1]} 25... h5 {[%clk 0:00:17.6]} 26. Ne5
{[%clk 0:01:57.1]} 26... Ndf5 {[%clk 0:00:16.8]} 27. Nxg6+ {[%clk 0:01:47.4]}
27... Nxg6 {[%clk 0:00:12.9]} 28. Nxf5 {[%clk 0:01:45.7]} 28... Qxc2 {[%clk
0:00:12.3]} 29. Qf3 {[%clk 0:01:41.2]} 29... Rc3 {[%clk 0:00:10.3]} 30. Qxh5
{[%clk 0:01:40.4]} 30... d4 {[%clk 0:00:05.9]} 31. Qh6+ {[%clk 0:01:39.2]} 1-0

[Event "*** SCC Grand Prix: Titled Tuesday Blitz"]
[Site "Chess.com"]
[Date "2020.07.14"]
[Round "10"]
[White "nrvisakh"]
[Black "ENEASZ"]
[Result "1-0"]
[WhiteElo "2780"]
[BlackElo "2585"]
[TimeControl "180+1"]
[EndTime "11:57:10 PDT"]
[Termination "nrvisakh won by checkmate"]

1. e4 {[%clk 0:03:00.9]} 1... d6 {[%clk 0:03:00]} 2. d4 {[%clk 0:02:54.4]} 2...
Nf6 {[%clk 0:02:59.8]} 3. Nc3 {[%clk 0:02:54.7]} 3... e5 {[%clk 0:02:59.9]} 4.
Nf3 {[%clk 0:02:53.6]} 4... Nbd7 {[%clk 0:02:59.5]} 5. Bc4 {[%clk 0:02:53]} 5...
Be7 {[%clk 0:02:59.8]} 6. O-O {[%clk 0:02:53]} 6... O-O {[%clk 0:02:59.9]} 7.
Re1 {[%clk 0:02:52.9]} 7... c6 {[%clk 0:02:59.7]} 8. a4 {[%clk 0:02:49.1]} 8...
b6 {[%clk 0:03:00.1]} 9. h3 {[%clk 0:02:47.2]} 9... a6 {[%clk 0:02:57.8]} 10.
Bb3 {[%clk 0:02:36.8]} 10... Rb8 {[%clk 0:02:57.1]} 11. Bg5 {[%clk 0:02:27.3]}
11... b5 {[%clk 0:02:55]} 12. axb5 {[%clk 0:02:26.4]} 12... axb5 {[%clk
0:02:55.9]} 13. dxe5 {[%clk 0:02:21.1]} 13... Nxe5 {[%clk 0:02:52.7]} 14. Nxe5
{[%clk 0:02:19.4]} 14... dxe5 {[%clk 0:02:53.6]} 15. Qf3 {[%clk 0:02:13.7]}
15... h6 {[%clk 0:02:37.7]} 16. Red1 {[%clk 0:02:12.9]} 16... Qc7 {[%clk
0:02:36.7]} 17. Bxf6 {[%clk 0:02:11.9]} 17... Bxf6 {[%clk 0:02:35.9]} 18. Ne2
{[%clk 0:02:12.1]} 18... Qe7 {[%clk 0:02:31.7]} 19. Ng3 {[%clk 0:02:10.1]} 19...
g6 {[%clk 0:02:31.8]} 20. Nf1 {[%clk 0:01:55.4]} 20... Kg7 {[%clk 0:02:30.2]}
21. Ne3 {[%clk 0:01:55.6]} 21... h5 {[%clk 0:02:29.6]} 22. c3 {[%clk 0:01:54.9]}
22... Bg5 {[%clk 0:02:25.1]} 23. Qe2 {[%clk 0:01:52.5]} 23... Rd8 {[%clk
0:02:08.9]} 24. Rxd8 {[%clk 0:01:46.4]} 24... Qxd8 {[%clk 0:02:09.8]} 25. Nc2
{[%clk 0:01:46.6]} 25... Qe7 {[%clk 0:01:47.1]} 26. Nb4 {[%clk 0:01:45.8]} 26...
Bb7 {[%clk 0:01:37.7]} 27. Rd1 {[%clk 0:01:06.4]} 27... Rd8 {[%clk 0:01:36.2]}
28. Rxd8 {[%clk 0:01:01.4]} 28... Qxd8 {[%clk 0:01:37.1]} 29. Nd3 {[%clk
0:00:56.7]} 29... Qd6 {[%clk 0:01:32.5]} 30. Ne1 {[%clk 0:00:49]} 30... c5
{[%clk 0:01:23.5]} 31. Qxb5 {[%clk 0:00:44.3]} 31... Bxe4 {[%clk 0:01:22.7]} 32.
Qc4 {[%clk 0:00:43.3]} 32... f5 {[%clk 0:01:10.6]} 33. Qg8+ {[%clk 0:00:36.2]}
33... Kf6 {[%clk 0:01:10.4]} 34. Qf7# {[%clk 0:00:34.8]} 1-0

[Event "*** SCC Grand Prix: Titled Tuesday Blitz"]
[Site "Chess.com"]
[Date "2020.07.14"]
[Round "10"]
[White "KetiGrant"]
[Black "Chuchofrio1"]
[Result "0-1"]
[WhiteElo "2357"]
[BlackElo "2189"]
[TimeControl "180+1"]
[EndTime "11:57:10 PDT"]
[Termination "Chuchofrio1 won by resignation"]

1. e4 {[%clk 0:03:00.9]} 1... c5 {[%clk 0:02:59.2]} 2. Nf3 {[%clk 0:02:59.7]}
2... e6 {[%clk 0:02:59.7]} 3. d4 {[%clk 0:02:59.1]} 3... cxd4 {[%clk 0:03:00.3]}
4. Nxd4 {[%clk 0:03:00]} 4... Nf6 {[%clk 0:03:00.7]} 5. Nc3 {[%clk 0:02:59.9]}
5... Nc6 {[%clk 0:03:00.9]} 6. Ndb5 {[%clk 0:02:58.9]} 6... Bc5 {[%clk
0:03:00.7]} 7. Nd6+ {[%clk 0:02:57.7]} 7... Ke7 {[%clk 0:03:00.1]} 8. Bf4 {[%clk
0:02:58.2]} 8... e5 {[%clk 0:02:59.3]} 9. Nf5+ {[%clk 0:02:57.3]} 9... Kf8
{[%clk 0:02:59.2]} 10. Bg5 {[%clk 0:02:56.8]} 10... d6 {[%clk 0:02:59.3]} 11.
Ng3 {[%clk 0:02:53]} 11... h6 {[%clk 0:02:58.2]} 12. Bxf6 {[%clk 0:02:50.7]}
12... Qxf6 {[%clk 0:02:57.7]} 13. Qd2 {[%clk 0:02:51.6]} 13... Be6 {[%clk
0:02:51.2]} 14. Bd3 {[%clk 0:02:47]} 14... g6 {[%clk 0:02:50.9]} 15. O-O {[%clk
0:02:44.2]} 15... Kg7 {[%clk 0:02:51]} 16. Kh1 {[%clk 0:02:43.1]} 16... Qg5
{[%clk 0:02:34.9]} 17. f4 {[%clk 0:02:29.1]} 17... exf4 {[%clk 0:02:31.1]} 18.
Rxf4 {[%clk 0:02:29]} 18... Raf8 {[%clk 0:02:24.6]} 19. Raf1 {[%clk 0:02:27.9]}
19... Ne5 {[%clk 0:02:20.4]} 20. Nd5 {[%clk 0:02:21.5]} 20... Bxd5 {[%clk
0:02:10.6]} 21. exd5 {[%clk 0:02:22.4]} 21... f5 {[%clk 0:02:10.5]} 22. b4
{[%clk 0:02:04.9]} 22... Bb6 {[%clk 0:02:04]} 23. c4 {[%clk 0:02:05.2]} 23...
Rf6 {[%clk 0:01:40.2]} 24. Bb1 {[%clk 0:01:49.2]} 24... Re8 {[%clk 0:01:28.6]}
25. Qc3 {[%clk 0:01:46.9]} 25... Ng4 {[%clk 0:01:16.6]} 26. h3 {[%clk
0:01:28.4]} 26... Re3 {[%clk 0:01:07.5]} 27. Rxg4 {[%clk 0:01:10]} 27... Rxc3
{[%clk 0:00:58.9]} 28. Rxg5 {[%clk 0:01:08.8]} 28... hxg5 {[%clk 0:00:58.8]} 0-1

[Event "*** SCC Grand Prix: Titled Tuesday Blitz"]
[Site "Chess.com"]
[Date "2020.07.14"]
[Round "10"]
[White "Joseacorrea"]
[Black "RobPeresian"]
[Result "0-1"]
[WhiteElo "1969"]
[BlackElo "2238"]
[TimeControl "180+1"]
[EndTime "11:57:13 PDT"]
[Termination "RobPeresian won by resignation"]

1. c4 {[%clk 0:02:59.2]} 1... e6 {[%clk 0:02:59.3]} 2. Nc3 {[%clk 0:02:59.3]}
2... d5 {[%clk 0:02:59.6]} 3. cxd5 {[%clk 0:03:00.2]} 3... exd5 {[%clk
0:02:59.4]} 4. d4 {[%clk 0:03:00.8]} 4... c6 {[%clk 0:02:58.4]} 5. Nf3 {[%clk
0:03:01.3]} 5... Nf6 {[%clk 0:02:57.9]} 6. Bg5 {[%clk 0:03:00.6]} 6... Qb6
{[%clk 0:02:52]} 7. Bxf6 {[%clk 0:02:43]} 7... Qxb2 {[%clk 0:02:49.1]} 8. Qc1
{[%clk 0:02:18.8]} 8... Qxc1+ {[%clk 0:02:28.4]} 9. Rxc1 {[%clk 0:02:19.7]} 9...
gxf6 {[%clk 0:02:27.8]} 10. e3 {[%clk 0:02:16.9]} 10... Bf5 {[%clk 0:01:50.4]}
11. Kd2 {[%clk 0:01:39.5]} 11... Ba3 {[%clk 0:01:45.8]} 12. Re1 {[%clk
0:01:34.3]} 12... Nd7 {[%clk 0:01:36.2]} 13. Bd3 {[%clk 0:01:32.6]} 13... Bg6
{[%clk 0:01:34.9]} 14. e4 {[%clk 0:01:27.8]} 14... dxe4 {[%clk 0:01:32]} 15.
Bxe4 {[%clk 0:01:21.1]} 15... O-O-O {[%clk 0:01:29.8]} 16. h4 {[%clk 0:01:06.7]}
16... Nc5 {[%clk 0:01:02]} 17. h5 {[%clk 0:00:30.2]} 17... Bxe4 {[%clk
0:00:53.9]} 18. Nxe4 {[%clk 0:00:27.9]} 18... Bb4+ {[%clk 0:00:49]} 19. Ke2
{[%clk 0:00:17.9]} 19... Nxe4 {[%clk 0:00:47.1]} 0-1

[Event "*** SCC Grand Prix: Titled Tuesday Blitz"]
[Site "Chess.com"]
[Date "2020.07.14"]
[Round "10"]
[White "AryanTari"]
[Black "13MiRacLe"]
[Result "1-0"]
[WhiteElo "2864"]
[BlackElo "2634"]
[TimeControl "180+1"]
[EndTime "11:57:19 PDT"]
[Termination "AryanTari won on time"]

1. e4 {[%clk 0:03:00.9]} 1... e5 {[%clk 0:02:59.6]} 2. Nf3 {[%clk 0:03:00.9]}
2... Nc6 {[%clk 0:03:00.2]} 3. Nc3 {[%clk 0:02:59.9]} 3... Nf6 {[%clk
0:03:00.1]} 4. a3 {[%clk 0:03:00.1]} 4... d5 {[%clk 0:02:59.7]} 5. Bb5 {[%clk
0:03:00.1]} 5... Nxe4 {[%clk 0:02:59.6]} 6. Qe2 {[%clk 0:02:59.5]} 6... Qd6
{[%clk 0:02:59.7]} 7. Nxe4 {[%clk 0:02:57.7]} 7... dxe4 {[%clk 0:02:59.6]} 8.
Qxe4 {[%clk 0:02:58.6]} 8... Bd7 {[%clk 0:02:59.9]} 9. d4 {[%clk 0:02:51.4]}
9... O-O-O {[%clk 0:02:57]} 10. dxe5 {[%clk 0:02:50.4]} 10... Nxe5 {[%clk
0:02:54.6]} 11. Bxd7+ {[%clk 0:02:51]} 11... Rxd7 {[%clk 0:02:42.5]} 12. O-O
{[%clk 0:02:51.9]} 12... Nxf3+ {[%clk 0:02:42.2]} 13. Qxf3 {[%clk 0:02:51.9]}
13... Qd5 {[%clk 0:02:42.8]} 14. Qg3 {[%clk 0:02:40.6]} 14... f5 {[%clk
0:02:23.6]} 15. Bf4 {[%clk 0:02:29.6]} 15... Bd6 {[%clk 0:02:22.5]} 16. Rae1
{[%clk 0:02:17.2]} 16... Bxf4 {[%clk 0:01:33.9]} 17. Qxf4 {[%clk 0:02:18.1]}
17... g6 {[%clk 0:01:22.5]} 18. Re2 {[%clk 0:02:14.9]} 18... Qd4 {[%clk
0:01:17.8]} 19. Qf3 {[%clk 0:02:04.6]} 19... Qxb2 {[%clk 0:01:11.6]} 20. Rfe1
{[%clk 0:01:59.3]} 20... Rhd8 {[%clk 0:01:11.1]} 21. h4 {[%clk 0:01:58.1]} 21...
Qf6 {[%clk 0:01:01.1]} 22. h5 {[%clk 0:01:52.4]} 22... Rd1 {[%clk 0:00:53.7]}
23. g3 {[%clk 0:01:48.1]} 23... Rxe1+ {[%clk 0:00:52.3]} 24. Rxe1 {[%clk
0:01:49]} 24... Kb8 {[%clk 0:00:38.8]} 25. Qf4 {[%clk 0:01:36.1]} 25... g5
{[%clk 0:00:35.8]} 26. Qe5 {[%clk 0:01:36.2]} 26... Qf7 {[%clk 0:00:23.4]} 27.
Qe7 {[%clk 0:01:33.9]} 27... Qxe7 {[%clk 0:00:05.9]} 28. Rxe7 {[%clk 0:01:34.8]}
28... a5 {[%clk 0:00:05.4]} 29. Rxh7 {[%clk 0:01:34.2]} 29... b5 {[%clk
0:00:06.1]} 30. Rf7 {[%clk 0:01:31.7]} 30... Rd5 {[%clk 0:00:02.3]} 31. h6
{[%clk 0:01:31.1]} 31... Kb7 {[%clk 0:00:02]} 32. Rg7 {[%clk 0:01:25.6]} 1-0

[Event "*** SCC Grand Prix: Titled Tuesday Blitz"]
[Site "Chess.com"]
[Date "2020.07.14"]
[Round "10"]
[White "winniethepooh04"]
[Black "AniJak"]
[Result "0-1"]
[WhiteElo "2151"]
[BlackElo "2312"]
[TimeControl "180+1"]
[EndTime "11:57:23 PDT"]
[Termination "AniJak won by resignation"]

1. e4 {[%clk 0:02:58.6]} 1... c6 {[%clk 0:03:00.2]} 2. Nf3 {[%clk 0:02:57.5]}
2... d5 {[%clk 0:02:59.7]} 3. Nc3 {[%clk 0:02:57.6]} 3... Bg4 {[%clk 0:03:00.2]}
4. h3 {[%clk 0:02:56.2]} 4... Bxf3 {[%clk 0:03:00.1]} 5. Qxf3 {[%clk 0:02:55.8]}
5... Nf6 {[%clk 0:03:00.9]} 6. exd5 {[%clk 0:02:55.5]} 6... cxd5 {[%clk
0:03:00]} 7. Bb5+ {[%clk 0:02:53]} 7... Nc6 {[%clk 0:02:59.8]} 8. O-O {[%clk
0:02:51.2]} 8... e6 {[%clk 0:02:59.4]} 9. Re1 {[%clk 0:02:49.8]} 9... Be7 {[%clk
0:02:58.4]} 10. Ne2 {[%clk 0:02:20.4]} 10... O-O {[%clk 0:02:57.1]} 11. d4
{[%clk 0:02:20.5]} 11... Qb6 {[%clk 0:02:53.8]} 12. Bxc6 {[%clk 0:02:10.9]}
12... bxc6 {[%clk 0:02:54.7]} 13. c3 {[%clk 0:02:07.2]} 13... c5 {[%clk
0:02:43.9]} 14. Rb1 {[%clk 0:02:04]} 14... cxd4 {[%clk 0:02:40.7]} 15. Nxd4
{[%clk 0:02:03]} 15... Ne4 {[%clk 0:02:37.5]} 16. Be3 {[%clk 0:01:59.1]} 16...
Qc7 {[%clk 0:02:20.7]} 17. g4 {[%clk 0:01:43.1]} 17... Bg5 {[%clk 0:02:09.2]}
18. Qg2 {[%clk 0:01:11.2]} 18... Bxe3 {[%clk 0:02:06.1]} 19. Rxe3 {[%clk
0:01:07.8]} 19... Rab8 {[%clk 0:02:03.9]} 20. f3 {[%clk 0:00:57.3]} 20... Nd6
{[%clk 0:01:59]} 21. f4 {[%clk 0:00:53.2]} 21... Nc4 {[%clk 0:01:56.6]} 22. Rf3
{[%clk 0:00:46.3]} 22... Rfe8 {[%clk 0:01:39.2]} 23. b3 {[%clk 0:00:33.1]} 23...
e5 {[%clk 0:01:37.7]} 24. Nf5 {[%clk 0:00:23]} 24... exf4 {[%clk 0:01:36.9]} 25.
Rbf1 {[%clk 0:00:20.2]} 25... Ne3 {[%clk 0:01:26.9]} 26. Nxe3 {[%clk 0:00:19.8]}
26... fxe3 {[%clk 0:01:23.9]} 27. Rxf7 {[%clk 0:00:19.5]} 27... Qxf7 {[%clk
0:01:23]} 28. Rxf7 {[%clk 0:00:18.8]} 28... Kxf7 {[%clk 0:01:23.3]} 29. Qxd5+
{[%clk 0:00:19]} 29... Kf8 {[%clk 0:01:20.7]} 30. Kf1 {[%clk 0:00:17.1]} 30...
Rbd8 {[%clk 0:01:19.6]} 31. Qf5+ {[%clk 0:00:16]} 31... Kg8 {[%clk 0:01:19.4]}
32. Ke1 {[%clk 0:00:15]} 32... e2 {[%clk 0:01:18.3]} 0-1

[Event "*** SCC Grand Prix: Titled Tuesday Blitz"]
[Site "Chess.com"]
[Date "2020.07.14"]
[Round "10"]
[White "MisiekZielony"]
[Black "rududuyk"]
[Result "1-0"]
[WhiteElo "2203"]
[BlackElo "2065"]
[TimeControl "180+1"]
[EndTime "11:57:26 PDT"]
[Termination "MisiekZielony won by resignation"]

1. c4 {[%clk 0:03:00.8]} 1... e5 {[%clk 0:02:59.4]} 2. Nc3 {[%clk 0:03:00.6]}
2... Nc6 {[%clk 0:02:59.4]} 3. g3 {[%clk 0:02:59.3]} 3... Bc5 {[%clk 0:02:59.2]}
4. Bg2 {[%clk 0:02:59.3]} 4... d6 {[%clk 0:02:59.2]} 5. e3 {[%clk 0:02:59.5]}
5... f5 {[%clk 0:02:59]} 6. Nge2 {[%clk 0:02:58.6]} 6... Nf6 {[%clk 0:02:59.1]}
7. d4 {[%clk 0:02:57.9]} 7... Bb6 {[%clk 0:02:58.7]} 8. O-O {[%clk 0:02:51]}
8... O-O {[%clk 0:02:57.7]} 9. a3 {[%clk 0:02:49.4]} 9... a5 {[%clk 0:02:55.2]}
10. Rb1 {[%clk 0:02:48.9]} 10... Qe8 {[%clk 0:02:54.4]} 11. b4 {[%clk
0:02:47.7]} 11... Qh5 {[%clk 0:02:42.5]} 12. c5 {[%clk 0:02:45.1]} 12... Ba7
{[%clk 0:02:40.3]} 13. f4 {[%clk 0:02:25.7]} 13... e4 {[%clk 0:01:56.2]} 14.
Qb3+ {[%clk 0:02:24.5]} 14... Kh8 {[%clk 0:01:53.8]} 15. b5 {[%clk 0:02:24.8]}
15... Nd8 {[%clk 0:01:49.2]} 16. b6 {[%clk 0:02:14.9]} 16... cxb6 {[%clk
0:01:40]} 17. cxd6 {[%clk 0:02:15]} 17... Be6 {[%clk 0:01:26.7]} 18. d5 {[%clk
0:02:14.7]} 18... Bg8 {[%clk 0:01:13.3]} 19. Nd4 {[%clk 0:02:14.5]} 19... b5
{[%clk 0:00:53.7]} 20. Ndxb5 {[%clk 0:02:11.4]} 20... Ng4 {[%clk 0:00:52.7]} 21.
h3 {[%clk 0:02:04.5]} 21... Bxe3+ {[%clk 0:00:48.6]} 22. Kh1 {[%clk 0:01:16.4]}
22... Nf2+ {[%clk 0:00:45.9]} 23. Kh2 {[%clk 0:01:13.6]} 23... Ng4+ {[%clk
0:00:40]} 24. Kh1 {[%clk 0:01:11.3]} 24... Nf2+ {[%clk 0:00:39.5]} 25. Rxf2
{[%clk 0:01:08.9]} 25... Bxf2 {[%clk 0:00:38.8]} 26. Nd1 {[%clk 0:01:07.3]}
26... Bxg3 {[%clk 0:00:29.5]} 27. Qxg3 {[%clk 0:00:59.7]} 27... Qxd1+ {[%clk
0:00:29.3]} 28. Kh2 {[%clk 0:00:59.8]} 28... Bxd5 {[%clk 0:00:20.9]} 29. Bb2
{[%clk 0:00:59.2]} 1-0

[Event "*** SCC Grand Prix: Titled Tuesday Blitz"]
[Site "Chess.com"]
[Date "2020.07.14"]
[Round "10"]
[White "Indianlad"]
[Black "Hikaru"]
[Result "0-1"]
[WhiteElo "2948"]
[BlackElo "3195"]
[TimeControl "180+1"]
[EndTime "11:57:28 PDT"]
[Termination "Hikaru won by resignation"]

1. e4 {[%clk 0:03:00.9]} 1... c5 {[%clk 0:02:52.7]} 2. Nc3 {[%clk 0:03:01]} 2...
a6 {[%clk 0:02:50.2]} 3. g3 {[%clk 0:03:00.5]} 3... g6 {[%clk 0:02:43.3]} 4. Bg2
{[%clk 0:02:49.6]} 4... Bg7 {[%clk 0:02:43.2]} 5. d3 {[%clk 0:02:44.6]} 5... Nc6
{[%clk 0:02:42.7]} 6. Be3 {[%clk 0:02:44.4]} 6... d6 {[%clk 0:02:43.2]} 7. Qd2
{[%clk 0:02:44.7]} 7... Rb8 {[%clk 0:02:39]} 8. f4 {[%clk 0:02:41.9]} 8... b5
{[%clk 0:02:39.2]} 9. Nf3 {[%clk 0:02:34.5]} 9... b4 {[%clk 0:02:39.3]} 10. Nd1
{[%clk 0:02:34.1]} 10... Nf6 {[%clk 0:02:40]} 11. h3 {[%clk 0:02:32.3]} 11...
Bb7 {[%clk 0:02:29.9]} 12. O-O {[%clk 0:02:31.5]} 12... Nd7 {[%clk 0:02:29.7]}
13. c3 {[%clk 0:02:28.8]} 13... a5 {[%clk 0:02:29.7]} 14. Nf2 {[%clk 0:02:13.9]}
14... a4 {[%clk 0:02:28.3]} 15. Rab1 {[%clk 0:02:10.1]} 15... Ba6 {[%clk
0:02:20]} 16. Rfe1 {[%clk 0:02:05.4]} 16... O-O {[%clk 0:01:47.7]} 17. f5 {[%clk
0:02:00.1]} 17... Qa5 {[%clk 0:01:36.8]} 18. c4 {[%clk 0:01:42.5]} 18... b3
{[%clk 0:01:37.3]} 19. axb3 {[%clk 0:01:42.7]} 19... Rxb3 {[%clk 0:01:32.2]} 20.
Qc1 {[%clk 0:00:39.6]} 20... Rfb8 {[%clk 0:01:28.4]} 21. Bh6 {[%clk 0:00:39.9]}
21... Bxb2 {[%clk 0:01:17.5]} 22. Rxb2 {[%clk 0:00:40.2]} 22... Rxb2 {[%clk
0:01:18.1]} 23. fxg6 {[%clk 0:00:38.7]} 23... hxg6 {[%clk 0:01:13.2]} 24. Ng4
{[%clk 0:00:10.2]} 24... Rb1 {[%clk 0:01:08.7]} 25. Qe3 {[%clk 0:00:08.4]} 25...
Rxe1+ {[%clk 0:01:06.8]} 26. Nxe1 {[%clk 0:00:09.3]} 26... Rb1 {[%clk
0:01:06.5]} 27. Kf1 {[%clk 0:00:08.1]} 27... a3 {[%clk 0:01:05.6]} 0-1

[Event "*** SCC Grand Prix: Titled Tuesday Blitz"]
[Site "Chess.com"]
[Date "2020.07.14"]
[Round "10"]
[White "andy_rekt"]
[Black "realmadridtv"]
[Result "0-1"]
[WhiteElo "2308"]
[BlackElo "2462"]
[TimeControl "180+1"]
[EndTime "11:57:30 PDT"]
[Termination "realmadridtv won by checkmate"]

1. d4 {[%clk 0:03:00.9]} 1... Nf6 {[%clk 0:02:59.7]} 2. c4 {[%clk 0:03:00.7]}
2... e6 {[%clk 0:02:58.8]} 3. Nc3 {[%clk 0:03:01]} 3... Bb4 {[%clk 0:02:58.5]}
4. e3 {[%clk 0:03:01.7]} 4... b6 {[%clk 0:02:58.1]} 5. Ne2 {[%clk 0:03:02.2]}
5... Ne4 {[%clk 0:02:57.1]} 6. Qc2 {[%clk 0:02:57.7]} 6... Bb7 {[%clk
0:02:56.8]} 7. f3 {[%clk 0:02:53.7]} 7... Nxc3 {[%clk 0:02:55.9]} 8. Nxc3 {[%clk
0:02:52.2]} 8... O-O {[%clk 0:02:54.9]} 9. Bd3 {[%clk 0:02:50.1]} 9... f5 {[%clk
0:02:53.1]} 10. O-O {[%clk 0:02:50.1]} 10... Qf6 {[%clk 0:02:47.3]} 11. a3
{[%clk 0:02:44.2]} 11... Be7 {[%clk 0:02:42]} 12. d5 {[%clk 0:02:40.2]} 12... e5
{[%clk 0:02:40.4]} 13. b4 {[%clk 0:02:29.2]} 13... a5 {[%clk 0:02:34.9]} 14. Rb1
{[%clk 0:02:18.7]} 14... axb4 {[%clk 0:02:33.6]} 15. axb4 {[%clk 0:02:19.6]}
15... d6 {[%clk 0:02:22.5]} 16. Bb2 {[%clk 0:02:13.9]} 16... Nd7 {[%clk
0:02:20.5]} 17. Nb5 {[%clk 0:02:10.8]} 17... Bd8 {[%clk 0:02:14]} 18. f4 {[%clk
0:02:10.6]} 18... Bc8 {[%clk 0:02:04.8]} 19. fxe5 {[%clk 0:01:47.9]} 19... Nxe5
{[%clk 0:02:03.8]} 20. e4 {[%clk 0:01:48.4]} 20... f4 {[%clk 0:01:59.3]} 21. Nd4
{[%clk 0:01:43.6]} 21... Qh6 {[%clk 0:01:55.4]} 22. Nf5 {[%clk 0:01:13.1]} 22...
Bxf5 {[%clk 0:01:53.1]} 23. Bxe5 {[%clk 0:01:13.3]} 23... Bg4 {[%clk 0:01:35.7]}
24. Bd4 {[%clk 0:01:04.5]} 24... f3 {[%clk 0:01:30]} 25. gxf3 {[%clk 0:00:47.1]}
25... Bxf3 {[%clk 0:01:26.9]} 26. Qf2 {[%clk 0:00:27.6]} 26... Bh4 {[%clk
0:01:02.2]} 27. Qxf3 {[%clk 0:00:27.8]} 27... Rxf3 {[%clk 0:01:01.3]} 28. Rxf3
{[%clk 0:00:28.7]} 28... Ra2 {[%clk 0:00:56.4]} 29. Rbf1 {[%clk 0:00:22.5]}
29... Qg5+ {[%clk 0:00:54]} 30. Kh1 {[%clk 0:00:17.1]} 30... Qg2# {[%clk
0:00:52.8]} 0-1